Cogmind - Beta 14 @@@ ROGUE MODE // 2024.09.06 @ 22:41:05 Player: Dhoby_ghaut Result: Destroyed by 7Z-8OY(R) with Subdweller Beam Cannon Performance ------------- Evolutions (0) 0 Regions Visited (2) 400 Robots Destroyed (31) 155 Value Destroyed (851) 851 Prototype IDs (0) 0 Alien Tech Used (0) 0 Bonus (0) 0 TOTAL SCORE: 1406 Bonus ------- None Cogmind --------- Core Integrity 0/250 Matter 211/300 Energy 251/265 System Corruption 4% Temperature Cool (11) Movement Treading (160) Location -10/Subcaves Parts ------- > --- POWER (1) -------- Improved Ion Engine > --- PROPULSION (2) --- Light Treads Spiked Treads > --- UTILITY (2) ------ Large Storage Unit Subdweller Optics > --- WEAPON (2) ------- Battle Rifle Battle Rifle > --- INVENTORY (15) --- Light Treads Light Treads Wheel Large Matter Pod (150) Riot Gun Riot Gun Beamcaster Subdweller Beam Cannon Subdweller Beam Cannon Subdweller Shrapnel Launcher Datajack Welding Torch Scrap Shield Fragment (48) Peak State ------------ > --- POWER ------------ Improved Ion Engine > --- PROPULSION ------- Spiked Treads Wheel > --- UTILITY ---------- Large Storage Unit Subdweller Optics > --- WEAPON ----------- Battle Rifle Battle Rifle > --- INVENTORY -------- Light Treads Light Treads Light Treads Wheel Large Matter Pod Subdweller Optics Riot Gun Riot Gun Beamcaster Subdweller Beam Cannon Subdweller Beam Cannon Subdweller Shrapnel Launcher Datajack Welding Torch Scrap Shield Fragment [Rating: 14] Favorites ----------- Power Improved Ion Engine Engine Improved Ion Engine Propulsion Wheel Treads Light Treads Wheel Wheel Utility Large Storage Unit Device Seismic Detector Storage Large Storage Unit Protection Scrap Shield Weapon Assault Rifle Energy Gun EM Pulse Gun Energy Cannon Light EM Pulse Cannon Ballistic Gun Assault Rifle Special Weapon Mining Laser Special Melee Weapon Datajack Build | -11 -10 -10 ------- Run | Yrd Mat Sub Slots Evolved . | . . . Power . | . . . Propulsion . | . . . Utility . | . . . Weapon . | . . . Parts Attached 37 | 7 16 14 Power 4 | 1 2 1 Engine 4 | 1 2 1 Core . | . . . Reactor . | . . . Propulsion 6 | 2 1 3 Treads 4 | 1 . 3 Leg . | . . . Wheel 2 | 1 1 . Hover . | . . . Flight . | . . . Utility 9 | 2 2 5 Device 5 | 1 1 3 Storage 3 | 1 1 1 Processor . | . . . Hackware . | . . . Protection 1 | . . 1 Artifact . | . . . Weapon 18 | 2 11 5 Energy Gun 1 | . 1 . Energy Cannon 7 | . 5 2 Ballistic Gun 6 | 2 1 3 Ballistic Cannon . | . . . Launcher . | . . . Special Weapon 3 | . 3 . Impact Weapon . | . . . Slashing Weapon . | . . . Piercing Weapon . | . . . Special Melee Weapon 1 | . 1 . Unidentified Prototypes . | . . . Parts Lost 8 | . 1 7 Power 1 | . 1 . Propulsion 2 | . . 2 Utility 2 | . . 2 Weapon 3 | . . 3 Highest Loss Streak 6 | . 1 6 To Critical Strikes . | . . . Average Slot Usage (%) 96 | . 100 92 Engine 14 | . 14 14 Treads 14 | . 14 14 Wheel 13 | . 14 13 Device 11 | . 14 7 Storage 13 | . 14 13 Energy Gun 2 | . 5 . Energy Cannon 6 | . 7 5 Ballistic Gun 16 | . 11 21 Special Weapon 1 | . 2 . Peak Build Rating 14 | 7 11 14 Average Rating 9 | 5 8 11 On Entrance 6 | . 7 11 Naked Turns . | . . . Heaviest Build 36 | 14 36 36 Greatest Support 40 | 20 10 40 Greatest Overweight (x) 3 | 1 3 3 Average Overweight (x) 1 | . 2 1 Largest Inventory Capacity 15 | 8 15 15 Average Capacity 13 | 7 13 14 Most Carried 15 | 6 15 15 Average Carried 11 | 3 10 13 Final Capacity 15 | 8 15 15 Final Carried 15 | 6 15 13 Class Distribution -------------------- 96% | Mutant 3% | Derelict-Mutant Dominant Class ---------------- Mutant | -10/Materials Mutant | -10/Subcaves Resources | -11 -10 -10 ----------- Run | Yrd Mat Sub Matter Collected 909 | 302 421 186 Remotely . | . . . Salvage Created 1487 | 149 739 599 Parts 81 | 11 36 34 Haulers Intercepted 2 | . 2 . Recyclers Shooed 2 | . 2 . Parts Field Recycled . | . . . Retrieved Matter . | . . . Parts Self-Destructed 15 | . . 15 Prevented . | . . . Kills | -11 -10 -10 ------- Run | Yrd Mat Sub Combat Hostiles Destroyed 19 | . 7 12 Guns 11 | . 6 5 Cannons 6 | . 1 5 Classes Destroyed 7 | 2 4 1 Tunneler 3 | 3 . . Hauler 2 | . 2 . Recycler 4 | 1 3 . Operator 1 | . 1 . Watcher 2 | . 2 . Grunt 7 | . 7 . Subdweller 12 | . . 12 Best Kill Streak 4 | 4 3 3 Combat Bots Only 3 | . 2 3 Max Kills in Single Turn 2 | 2 2 1 Gunslinging . | . . . Exploded . | . . . Melee . | . . . Uniques/NPCs Destroyed . | . . . Combat | -11 -10 -10 -------- Run | Yrd Mat Sub Hostile Shots Fired 110 | . 23 87 Missed 31 | . 4 27 Damage Taken 1618 | . 282 1336 Core 275 | . 71 204 Absorbed by Shields . | . . . Core Remaining (%) 100 | 100 . . Volleys Fired 103 | 8 58 37 Largest 2 | 2 2 2 Hottest 156 | 40 156 112 Shots Fired 188 | 16 98 74 Gun 122 | 16 64 42 Cannon 47 | . 15 32 Launcher . | . . . Special 19 | . 19 . Kinetic 105 | 16 47 42 Thermal 19 | . 19 . Explosive . | . . . Electromagnetic 64 | . 32 32 Robot Hit Streak 18 | 4 18 18 Robot Miss Streak 3 | 1 3 2 Penetration Max . | . . . Secondary Targets 2 | . 1 1 Max Gunslinging Chain 1 | . 1 1 Shots Hit Robots 123 | 10 54 59 Core Hits 48 | 6 23 19 Critical Kills . | . . . Critical Parts Destroyed . | . . . Critical Strikes 2 | . 1 1 Destroy 1 | . . 1 Corrupt 1 | . 1 . Melee Attacks 3 | . 3 . Impact . | . . . Slashing . | . . . Piercing . | . . . Sneak Attacks 1 | . 1 . Combat Hostiles . | . . . Follow-up Attacks . | . . . Damage Inflicted 1954 | 110 886 958 Guns 1096 | 110 576 410 Cannons 769 | . 221 548 Explosions 89 | . 89 . Melee . | . . . Ramming . | . . . Kinetic 917 | 110 397 410 Thermal 89 | . 89 . Explosive . | . . . Electromagnetic 948 | . 400 548 Impact . | . . . Slashing . | . . . Piercing . | . . . Highest Corruption 4 | . 4 4 Average Corruption 3 | . 3 4 Corruption Purged . | . . . Corruption Blocked . | . . . Effects 36 | . 11 25 Message Errors 9 | . 4 5 Matter Fused 5 | . 1 4 Heat Flow Errors 5 | . 2 3 Energy Discharges 10 | . 2 8 Data Loss (minor) 5 | . 2 3 Data Loss (major) 2 | . . 2 Overload Shots . | . . . Overflow Damage 10 | . 10 . Projectiles 10 | . 10 . Explosions . | . . . Melee . | . . . Knockbacks . | . . . Impact . | . . . Kinetic . | . . . Secondary . | . . . Self-Inflicted Damage . | . . . Shots . | . . . Rammed . | . . . Targets Rammed . | . . . Kicked . | . . . Crushed . | . . . Highest Temperature 227 | . 227 221 Average Temperature 52 | . 52 57 Received Heat Transfer 438 | . 147 291 Effects 1 | . 1 . Interference 1 | . 1 . Siege Activations . | . . . Robots Corrupted 3 | . 1 2 Combat Hostiles 2 | . . 2 Parts Fried 8 | . 1 7 Impact Corruptions . | . . . Robots Melted . | . . . Combat Hostiles . | . . . Parts Melted . | . . . Heat Transferred 100 | . 100 . Parts Sabotaged . | . . . Parts Stolen . | . . . Parts Stripped . | . . . Power Chain Reactions 1 | . 1 . Alert | -11 -10 -10 ------- Run | Yrd Mat Sub Peak Influence 163 | 20 163 . Initial 13 | . 13 . Average 70 | 6 74 . Maximum Alert Level . | . . . Low Security (%) 100 | 100 100 . Level 1 . | . . . Level 2 . | . . . Level 3 . | . . . Level 4 . | . . . Level 5 . | . . . High Security . | . . . Max Security . | . . . Squads Dispatched 5 | . 5 . Investigation 4 | . 4 . Extermination . | . . . Reinforcement 1 | . 1 . Assault . | . . . Garrison . | . . . Intercept . | . . . Searches Triggered . | . . . Construction Impeded . | . . . Haulers Reinforced . | . . . Active Scanning Responses . | . . . Cargo Convoy Interrupts . | . . . Stealth | -11 -10 -10 --------- Run | Yrd Mat Sub Distress Signals 2 | . 2 . Communications Jammed . | . . . Distress Signals . | . . . Times Spotted 32 | . 15 17 Peak Tracking Total 8 | . 3 8 Tactical Retreats 4 | . 1 3 Traps | -11 -10 -10 ------- Run | Yrd Mat Sub Traps Triggered 5 | . 5 . Indirectly . | . . . Trap Hack Attempts . | . . . Triggered . | . . . Disarmed . | . . . Reprogrammed . | . . . Reused . | . . . Traps Extracted . | . . . Installed . | . . . Triggered . | . . . Machines | -11 -10 -10 ---------- Run | Yrd Mat Sub Machines Disabled 1 | . 1 . Max in Single Turn 1 | . 1 . Machines Repaired . | . . . Machines Dismantled . | . . . Machines Sabotaged . | . . . Overloaded Fab Kills . | . . . Hacking | -11 -10 -10 --------- Run | Yrd Mat Sub Machines Accessed 8 | . 8 . Terminals 7 | . 7 . Fabricators . | . . . Repair Stations . | . . . Recycling Units 1 | . 1 . Scanalyzers . | . . . Garrison Access . | . . . Total Hacks 33 | . 33 . Successful 11 | . 11 . Failed 22 | . 22 . Catastrophic 1 | . 1 . Database Lockouts . | . . . Manual 23 | . 23 . Terminals 30 | . 30 . Fabricators . | . . . Repair Stations . | . . . Recycling Units 3 | . 3 . Scanalyzers . | . . . Garrison Access . | . . . Terminal Hacks 4 | . 4 . Robot Analysis 1 | . 1 . Branch Access Points 1 | . 1 . Terminal Index 1 | . 1 . Alert Level 1 | . 1 . Fabricator Hacks . | . . . Repair Station Hacks . | . . . Recycling Unit Hacks . | . . . Scanalyzer . | . . . Garrison Access Hacks . | . . . Unauthorized Hacks 7 | . 7 . Terminals 7 | . 7 . Botnet 1 | . 1 . Operators 1 | . 1 . Skim 5 | . 5 . Fabricators . | . . . Repair Stations . | . . . Recycling Units . | . . . Scanalyzers . | . . . Garrison Access . | . . . Data Cores Recovered . | . . . Used . | . . . Hacking Detections 8 | . 8 . Full Trace Events 2 | . 2 . Feedback Events . | . . . Feedback Blocked . | . . . Robot Schematics Acquired . | . . . Robots Built . | . . . Authchips . | . . . Time . | . . . Total Robot Build Rating . | . . . Part Schematics Acquired . | . . . Parts Built . | . . . Authchips . | . . . Time . | . . . Total Part Build Rating . | . . . Parts Repaired . | . . . Time . | . . . Parts Recycled . | . . . Recycled Matter . | . . . Retrieved Matter . | . . . Retrieved Components . | . . . Parts Scanalyzed . | . . . Part Schematics Acquired . | . . . Parts Damaged . | . . . Bothacking | -11 -10 -10 ------------ Run | Yrd Mat Sub Used RIF Installer . | . . . Robots Hacked 2 | . 2 . Non-combat 2 | . 2 . Combat . | . . . Robot Hacks Applied 2 | . 2 . parse_system 2 | . 2 . Relay Couplers Released . | . . . Fabnet Peak Effective % . | . . . Robots Rewired . | . . . Allies Hacked . | . . . Hacks Repelled . | . . . Allies | -11 -10 -10 -------- Run | Yrd Mat Sub Total Allies . | . . . Largest Group . | . . . Highest-Rated Group . | . . . Highest-Rated Ally . | . . . Total Orders . | . . . Ally Attacks . | . . . Total Damage . | . . . Kills . | . . . Allies Corrupted . | . . . Allies Melted . | . . . Intel | -11 -10 -10 ------- Run | Yrd Mat Sub Robot Analysis Total 1 | . 1 . Derelict Logs Recovered 1 | . . 1 Drone Launches . | . . . Drone Recoveries . | . . . Exploration | -11 -10 -10 ------------- Run | Yrd Mat Sub Turns Passed 2534 | 81 1304 1149 Spaces Moved 1352 | 46 815 491 Core 2 | 2 . . Treads 280 | 1 . 279 Legs . | . . . Wheels 1070 | 43 815 212 Hover . | . . . Flight . | . . . Fastest Speed 50 | 50 95 95 Average Speed 142 | 91 110 199 Slowest Speed 260 | 160 125 260 Overloaded Moves . | . . . Propulsion Burnouts . | . . . Robots Hopped . | . . . Cave-ins Triggered . | . . . Exploration Rate (%) 40 | 3 97 20 Regions Visited 2 Branch Regions 1 Pre-discovered Areas 3 | . 2 1 Known Exits Taken 1 | . 1 . Unknown Exits Taken 1 | 1 . . Scrap Searched 2 | . . 2 Spaces Dug 6 | . 6 . Terrain Destroyed 12 | . 12 . Melee . | . . . Projectile 9 | . 9 . AOE 3 | . 3 . Terrain Rammed . | . . . Walls Destroyed . | . . . Machines Disabled . | . . . Actions | -11 -10 -10 --------- Run | Yrd Mat Sub Total 1741 | 66 1083 592 Wait 183 | . 165 18 Move 1350 | 45 814 491 Hop . | . . . Pick Up 40 | 6 16 18 Fast Attach 12 | 7 . 5 Attach 9 | . 1 8 Detach 2 | . . 2 Swap 16 | . 15 1 Drop 23 | . 11 12 Fire 103 | 8 58 37 Melee 3 | . 3 . Ram . | . . . Kick . | . . . Crush . | . . . Escape Stasis . | . . . Rewire . | . . . Trap . | . . . Miscellaneous . | . . . Route ------- -11/Scrapyard -10/Materials (discovered 6 exits: *Mat x3 / *Min x2 / *Sub) -10/Subcaves (discovered 2 exits: [*Mat] / Rec) History --------- Turn | Location | Event 23 | -11/Scrapyard | Discovered new exit (range 16) 82 | -11/Scrapyard | Entered Materials 277 | -10/Materials | Discovered new exit (range 16) 310 | -10/Materials | Build established: Mutant 744 | -10/Materials | Discovered new exit (range 9) 814 | -10/Materials | Identified exit to Mines 896 | -10/Materials | Learned location of 1 exit from Storage 967 | -10/Materials | Learned location of 1 exit from Recycling 1028 | -10/Materials | Learned Storage security intel 1077 | -10/Materials | Identified exit to Materials 1077 | -10/Materials | Identified exit to Subcaves 1114 | -10/Materials | Learned Storage emergency access door positions 1139 | -10/Materials | Learned location of Mines (-8) 1273 | -10/Materials | Learned 4 Subcaves zone layouts 1310 | -10/Materials | Discovered exit to Materials (range 5) 1386 | -10/Materials | Entered Subcaves 1387 | -10/Subcaves | Identified exit to Recycling 1467 | -10/Subcaves | Ambushed by swarm of Subdwellers 1523 | -10/Subcaves | Lost 4 allies 1529 | -10/Subcaves | Core integrity fell below 50% 1628 | -10/Subcaves | Lost 6 parts (1n2u3w) 2256 | -10/Subcaves | A swath of the cavern ceiling suddenly collapsed 2361 | -10/Subcaves | Discovered new exit (range 16) 2497 | -10/Subcaves | Core integrity fell below 20% 2535 | -10/Subcaves | Destroyed by 7Z-8OY(R) with Subdweller Beam Cannon Last Messages --------------- 02256_ Derelict Log crushed. A swath of the cavern ceiling suddenly collapses. 02277_ System corrupted: Component data lost. 02312_ System corrupted: Energy discharge (-60). 02317_ Acquired 11 matter. 02328_ Acquired 9 matter. 02333_ System corrupted: Matter fused (-5). 02361_ EXIT=FOUND 02378_ System corrupted: Energy discharge (-53). 02406_ ???????????????? | | ???????????????????????????##????????????????????? | | ?????????????????????????????????????????????????? | | ?????????????????????????????????????????????????? | | ?????????????????????????????????????????????????? | | ?????????????????????????????????????????????????? | | ?????????????????????????????????????????????????? | | ?????????????????????????????????????????????????? | | ?????????????????????????????????????????????????? | | ?????????????????????????????????????????????????? | | ?????????????????????????????????????????????????? | | ?????????????????????????????????????????????????? | +----------------------------------------------------+ Best States ------------- Heat Dissipation 25 Energy Generation 12 Energy Capacity 265 Matter Stores 300 Matter Capacity 300 Sight Range 21 Terrain Scan Density 10 Armor Coverage 800 Evasion (%) 44 Recoil Reduction 2 Item Schematics ----------------- None Robot Schematics ------------------ None Fabricated ------------ Nothing Alien Tech Used ----------------- None Achievements -------------- None Challenges ------------ None Game ------ Seed ThiefExoskeletonMagmablaster Manual? 0 Play Time 00:29:32 Cumulative 20.1 hours Start 2024.09.06 @ 22:14:03 End 2024.09.06 @ 22:41:05 Sessions 2 Manual Loads 0 Difficulty Rogue Special Mode None Game No. 18 Rogue 18 Adventurer 0 Explorer 0 Win Type - Total 0 Types 0/0/0/0/0/0/0/0/0 Lore% 18 Gallery% 33 Achievement% 34 Wizard Run 0 Options --------- Layout 0 ASCII 0 Keyboard 0 Movement Vi Keybinds 0 Fullscreen 2 Font 18/SmallcapsGlow Map View 76x50 Zoom Use 0% Tactical HUD 1 Map Filters NONE Filters NONE Steam 1 RUN: d036dd5c-1fef-49d2-8074-29f2ede868cd